bitfinex-derivatives/quotes_SOLF0:USTF0_20250924
["timestamp","ask_amount","ask_price","bid_price","bid_amount"]
[1758756502397,1.72007714,211.88,211.82,115.24]
[1758756502596,1.72007714,211.89,211.83,7.94]
[1758756502801,1.72007714,211.92,211.83,7.94]
[1758756503002,1.72007714,211.9,211.84,4.2463]
[1758756503196,1.72007714,211.9,211.83,7.94]
[1758756505304,1.72007714,211.9,211.84,4.2464]
[1758756507297,1.72007714,211.9,211.82,115.24]
[1758756507298,7.66,211.93,211.86,7.36]
[1758756507500,1.72007714,211.92,211.86,7.36]
[1758756508305,7.66,211.89,211.86,7.36]
[1758756508705,1.72007714,211.9,211.83,7.36]
[1758756509104,1.72007714,211.92,211.83,7.36]
[1758756509310,5.96507714,211.92,211.83,7.36]
[1758756509496,1.72007714,211.9,211.83,7.36]
[1758756511211,1.72007714,211.94,211.85,7.36]
[1758756511601,9.38007714,211.94,211.85,7.36]
[1758756512310,9.38007714,211.94,211.86,4.2459]
[1758756512609,9.38007714,211.94,211.87,7.36]
[1758756513707,1.72007714,211.92,211.87,7.36]
[1758756513909,7.66,211.91,211.87,7.36]
[1758756514106,7.66,211.91,211.85,7.36]
[1758756514608,7.66,211.91,211.85,122.66]
[1758756516105,4.2449,211.92,211.86,4.246]
[1758756516514,4.2449,211.92,211.85,122.66]
[1758756517201,11.9052,211.91,211.85,122.66]
[1758756518315,11.9052,211.91,211.85,7.36]
[1758756518521,11.9052,211.91,211.85,84.26]
[1758756520512,2.69488299,211.94,211.85,76.9]
[1758756520714,66.0224,211.95,211.82,4.2467]
[1758756520715,7.66,211.9,211.82,4.2467]
[1758756520913,7.66,211.9,211.82,119.5467]
[1758756521114,7.66,211.9,211.82,115.3]
[1758756522218,4.2459,211.87,211.82,115.3]
[1758756522517,4.2459,211.87,211.83,7.36]
[1758756522820,4.2459,211.87,211.82,115.3]
[1758756523018,4.2459,211.87,211.83,7.36]
[1758756523320,4.2459,211.87,211.82,115.3]
[1758756523515,4.2459,211.87,211.83,7.36]
[1758756523718,7.66,211.86,211.78,7.36]
[1758756524013,7.66,211.86,211.79,115.3]
[1758756524422,4.2465,211.84,211.79,115.3]
[1758756524613,4.2465,211.84,211.8,7.36]
[1758756525112,4.2465,211.84,211.79,115.3]
[1758756525317,4.2465,211.84,211.8,7.36]
[1758756525516,4.2465,211.84,211.79,115.3]
[1758756525718,4.2465,211.84,211.8,7.36]
[1758756525918,4.2465,211.84,211.79,115.3]
[1758756526121,2.69488299,211.88,211.8,7.36]
[1758756526621,4.246,211.87,211.81,4.2469]
[1758756526821,4.246,211.87,211.8,7.36]
[1758756527324,4.246,211.87,211.8,11.6071]
[1758756527928,4.2454,211.89,211.81,7.36]
[1758756528126,13.76866517,211.99,211.81,7.36]
[1758756528127,2.69488299,211.92,211.81,7.36]
[1758756529320,4.2451,211.91,211.85,7.36]
[1758756531830,4.2451,211.91,211.85,11.6061]
[1758756533226,11.9047,211.93,211.87,7.36]
[1758756533632,7.66,211.93,211.87,7.36]
[1758756534345,4.245,211.92,211.85,4.2461]
[1758756534642,4.245,211.92,211.86,7.93]
[1758756535544,2.69488299,211.93,211.86,7.93]
[1758756535737,7.97,211.92,211.86,7.93]
[1758756537139,4.2453,211.9,211.86,7.93]
[1758756537340,12.2153,211.9,211.86,7.93]
[1758756541032,12.2153,211.9,211.85,7.93]
[1758756541235,4.2453,211.9,211.85,7.93]
[1758756542030,4.2453,211.9,211.84,91.1263]
[1758756542229,4.2453,211.9,211.85,7.93]
[1758756542940,4.2453,211.9,211.84,91.1263]
[1758756543140,4.2453,211.9,211.86,7.93]
[1758756543532,4.2453,211.9,211.85,4.2461]
[1758756543940,7.4,211.88,211.84,86.88]
[1758756544139,7.4,211.88,211.85,7.93]
[1758756544336,11.6457,211.88,211.85,7.93]
[1758756544533,7.4,211.88,211.85,7.93]
[1758756546545,68.72358299,211.93,211.84,86.88]
[1758756546739,7.4,211.92,211.84,86.88]
[1758756547248,11.6457,211.88,211.84,86.88]
[1758756547440,11.6457,211.88,211.85,7.93]
[1758756549138,4.2459,211.87,211.85,7.93]
[1758756549537,7.4,211.89,211.81,7.93]
[1758756549734,7.4,211.85,211.81,7.93]
[1758756549936,7.4,211.84,211.78,7.93]
[1758756550138,10.09488299,211.84,211.78,7.93]
[1758756550338,4.2467,211.83,211.78,7.93]
[1758756550544,7.4,211.82,211.75,13.99630412]
[1758756550845,11.6469,211.82,211.76,7.93]
[1758756551438,7.4,211.82,211.76,7.93]
[1758756551840,7.4,211.82,211.76,12.1778]
[1758756552039,4.2463,211.85,211.77,7.93]
[1758756552844,4.2465,211.84,211.78,7.93]
[1758756554644,4.2468,211.83,211.77,4.2478]
[1758756554841,4.2468,211.83,211.78,115.28]
[1758756555250,4.2468,211.83,211.79,7.93]
[1758756555548,4.2468,211.83,211.78,115.28]
[1758756556538,4.2468,211.83,211.79,7.93]
[1758756556737,4.2468,211.83,211.77,4.2478]
[1758756556941,4.2468,211.83,211.78,115.28]
[1758756557138,4.2468,211.83,211.79,7.93]
[1758756557338,4.2468,211.83,211.78,115.28]
[1758756557848,4.2468,211.83,211.79,7.93]
[1758756558250,4.2468,211.83,211.78,115.28]
[1758756558647,4.2468,211.83,211.75,18.31671849]
[1758756558853,4.2469,211.82,211.76,123.21]
[1758756559250,7.4,211.84,211.78,7.93]
[1758756559649,7.4,211.84,211.78,123.21]
[1758756560348,4.2465,211.84,211.78,119.5275]
[1758756560543,4.2465,211.84,211.79,7.93]
[1758756560746,4.2465,211.84,211.78,119.5275]
[1758756560952,4.2465,211.84,211.79,7.93]
[1758756561150,4.2465,211.84,211.78,119.5275]
[1758756561346,4.2465,211.84,211.79,7.93]
[1758756562046,4.2465,211.84,211.78,119.5275]
[1758756562242,4.2465,211.84,211.79,7.93]
[1758756562449,4.2465,211.84,211.78,119.5275]
[1758756562850,4.2465,211.84,211.79,7.93]
[1758756563050,4.2465,211.84,211.78,119.5275]
[1758756563251,11.6465,211.84,211.79,115.28]
[1758756563452,11.6465,211.84,211.8,7.93]
[1758756563950,11.6465,211.84,211.79,115.28]
[1758756564447,11.6465,211.84,211.8,7.61]
[1758756564845,11.6465,211.84,211.79,115.28]
[1758756565747,11.6465,211.84,211.8,7.61]
[1758756565953,11.6465,211.84,211.79,115.28]
[1758756566154,4.246,211.86,211.8,7.61]
[1758756566947,7.61,211.88,211.76,7.61]
[1758756567152,68.73688299,211.89,211.77,115.28]
[1758756567351,7.61,211.88,211.78,7.61]
[1758756568253,4.2468,211.83,211.78,7.61]
[1758756568454,4.2468,211.83,211.77,115.28]
[1758756568949,4.2468,211.83,211.78,7.61]
[1758756569155,4.2468,211.83,211.77,119.5277]
[1758756571155,4.2468,211.83,211.78,7.61]
[1758756571854,4.2468,211.83,211.77,119.5277]
[1758756572058,4.2468,211.83,211.78,7.61]
[1758756572355,4.2468,211.83,211.77,119.5277]
[1758756572556,4.2468,211.83,211.78,7.61]
[1758756572759,4.2468,211.83,211.77,119.5277]
[1758756572956,4.2468,211.83,211.78,7.61]
[1758756573155,11.8563,211.85,211.79,7.61]
[1758756573459,7.61,211.85,211.79,7.61]
[1758756574255,4.2465,211.84,211.78,4.2475]
[1758756574559,4.2465,211.84,211.79,7.61]
[1758756574753,4.2465,211.84,211.78,4.2475]
[1758756575060,4.2465,211.84,211.79,7.61]
[1758756575758,4.2465,211.84,211.78,4.2475]
[1758756576055,4.2465,211.84,211.79,7.61]
[1758756576359,4.2465,211.84,211.78,4.2475]
[1758756576555,11.8561,211.86,211.8,7.61]
[1758756576859,9.33565874,211.86,211.8,7.61]
[1758756577463,9.33565874,211.86,211.8,122.87]
[1758756578359,7.61,211.83,211.8,122.87]
[1758756578555,7.61,211.83,211.8,7.61]
[1758756578756,7.61,211.83,211.8,122.87]
[1758756579053,7.61,211.82,211.8,7.61]
[1758756579259,7.61,211.82,211.79,115.26]
[1758756579457,7.61,211.82,211.79,122.87]
[1758756581464,7.61,211.82,211.8,7.61]
[1758756581674,4.2467,211.83,211.8,7.61]
[1758756581964,11.8567,211.83,211.8,7.61]
[1758756584268,11.8567,211.83,211.8,122.87]
[1758756585367,11.8567,211.83,211.8,7.61]
[1758756585560,11.8567,211.83,211.8,62.81]
[1758756586666,11.8567,211.83,211.8,7.61]
[1758756594171,11.8567,211.83,211.77,4.2477]
[1758756594368,11.8567,211.83,211.78,115.24]
[1758756594771,4.2469,211.82,211.78,115.24]
[1758756594973,4.2469,211.82,211.79,7.66]
[1758756595472,4.2469,211.82,211.78,115.24]
[1758756595872,4.2469,211.82,211.79,7.66]
[1758756596075,4.2469,211.82,211.78,115.24]
[1758756596275,4.2469,211.82,211.77,4.2477]
[1758756596473,4.2469,211.82,211.78,115.24]
[1758756596665,4.2469,211.82,211.78,7.66]
[1758756596864,7.32,211.8,211.78,115.24]
[1758756597065,7.32,211.8,211.75,14.45017589]
[1758756597266,7.32,211.8,211.77,7.66]
[1758756597469,4.2471,211.81,211.77,122.88]
[1758756597669,4.2471,211.81,211.78,7.66]
[1758756597869,4.2471,211.81,211.76,4.2479]
[1758756598071,4.2471,211.81,211.78,7.66]
[1758756598274,11.5671,211.81,211.78,7.66]
[1758756599876,11.5671,211.81,211.77,115.22]
[1758756600177,11.5671,211.81,211.78,7.66]
[1758756600377,11.5671,211.81,211.77,115.22]
[1758756600767,11.5671,211.81,211.78,7.47]
[1758756601468,11.5671,211.81,211.77,115.22]
[1758756601666,11.5671,211.81,211.78,7.47]
[1758756602068,11.5671,211.81,211.77,115.22]
[1758756602274,4.2471,211.81,211.77,115.22]
[1758756602577,4.2471,211.81,211.77,119.4677]
[1758756602972,4.2471,211.81,211.78,7.47]
[1758756603172,4.2471,211.81,211.77,119.4677]
[1758756603473,1.72565874,211.8,211.74,5.25236489]
[1758756603680,7.94,211.79,211.76,7.47]
[1758756603877,1.72565874,211.8,211.76,7.47]
[1758756604072,4.2476,211.78,211.76,7.47]
[1758756604382,3.38924458,211.77,211.76,7.47]
[1758756605182,3.38924458,211.77,211.75,122.69]
[1758756605379,3.38924458,211.76,211.75,122.69]
[1758756605673,5.97295874,211.8,211.76,7.47]
[1758756605875,3.38807051,211.79,211.76,7.47]
[1758756606082,3.38807051,211.78,211.75,115.22]
[1758756606377,4.2469,211.82,211.76,7.47]
[1758756606576,3.38749334,211.81,211.76,7.47]
[1758756606772,3.38749334,211.8,211.76,7.47]
[1758756607079,1.72565874,211.85,211.76,7.47]
[1758756607281,3.38702946,211.84,211.76,7.47]
[1758756607471,3.38702946,211.83,211.76,7.47]
[1758756607673,3.38702946,211.82,211.76,7.47]
[1758756607877,3.38702946,211.81,211.79,7.47]
[1758756608078,3.38702946,211.8,211.79,7.47]
[1758756608271,3.38702946,211.8,211.79,122.69]
[1758756610077,4.2467,211.83,211.79,122.69]
[1758756610281,11.29823461,211.82,211.79,122.69]
[1758756610583,3.35823461,211.81,211.79,122.69]
[1758756610775,7.94,211.82,211.79,7.47]
[1758756610973,3.35823461,211.81,211.79,7.47]
[1758756611176,7.94,211.82,211.79,7.47]
[1758756611377,3.35825177,211.81,211.79,7.47]
[1758756611676,7.94,211.82,211.79,7.47]
[1758756611878,3.35825177,211.81,211.79,7.47]
[1758756612079,7.94,211.82,211.79,7.47]
[1758756612284,3.35826494,211.81,211.79,7.47]
[1758756612480,7.94,211.82,211.79,7.47]
[1758756612681,3.35826494,211.81,211.79,7.47]
[1758756612978,7.94,211.82,211.79,7.47]
[1758756613178,3.35826494,211.81,211.79,7.47]
[1758756613378,7.94,211.82,211.79,7.47]
[1758756613677,3.35827876,211.81,211.78,119.4475]
[1758756613882,7.94,211.82,211.79,7.47]
[1758756614083,3.35824625,211.81,211.78,119.4475]
[1758756614279,7.94,211.82,211.78,119.4475]
[1758756614474,3.35825423,211.81,211.79,7.47]
[1758756614679,12.1862,211.85,211.79,7.47]
[1758756614881,5.08391297,211.84,211.78,119.4475]
[1758756615082,11.29825423,211.83,211.79,7.47]
[1758756615281,3.35825423,211.82,211.79,7.47]
[1758756615487,3.35825423,211.81,211.78,119.4475]
[1758756615687,7.94,211.83,211.79,7.47]
[1758756615985,3.3582624,211.82,211.8,4.2471]
[1758756616188,7.00742391,211.92,211.82,7.47]
[1758756616395,3.35691593,211.91,211.84,7.47]
[1758756616686,3.35691593,211.9,211.86,7.47]
[1758756616885,7.94,211.94,211.86,7.47]
[1758756616886,3.35691593,211.89,211.86,7.47]
[1758756617086,7.94,211.94,211.86,7.47]
[1758756617284,3.35336535,211.93,211.86,7.47]
[1758756617587,3.35336535,211.92,211.86,7.47]
[1758756617788,7.94,211.94,211.85,119.4262]
[1758756617789,3.35336535,211.91,211.85,119.4262]
[1758756617987,3.35336535,211.9,211.86,4.2459]
[1758756618183,12.1845,211.94,211.87,7.47]
[1758756618387,3.35182483,211.93,211.87,7.47]
[1758756618690,3.35182483,211.92,211.86,9.19565874]
[1758756618883,3.35182483,211.91,211.86,9.19565874]
[1758756619083,12.1845,211.94,211.86,9.19565874]
[1758756619284,3.34971609,211.93,211.87,4.2456]
[1758756619482,3.34971609,211.92,211.87,4.2456]
[1758756619687,3.34971609,211.91,211.88,7.47]
[1758756619887,9.66565874,211.95,211.89,115.18]
[1758756620087,11.28988571,211.94,211.9,7.47]
[1758756620386,7.94,211.92,211.89,122.65]
[1758756620585,3.34988571,211.91,211.89,122.65]
[1758756620786,7.94,211.92,211.89,122.65]
[1758756621096,3.34858622,211.91,211.89,122.65]
[1758756621288,9.66565874,211.95,211.89,115.18]
[1758756621590,11.2874511,211.94,211.9,7.47]
[1758756621788,3.3474511,211.93,211.9,7.47]
[1758756621985,3.3474511,211.92,211.9,7.47]
[1758756622188,7.94,211.94,211.9,7.47]
[1758756622484,3.3464408,211.93,211.9,7.47]
[1758756622690,3.3464408,211.92,211.9,7.47]
[1758756622893,1.46798566,211.98,211.9,7.47]
[1758756622894,7.94,211.98,211.9,7.47]
[1758756623186,3.37566122,211.97,211.9,9.19565874]
[1758756623391,3.37566122,211.96,211.9,9.19565874]
[1758756623584,1.72565874,211.99,211.9,9.19565874]
[1758756623783,3.37298124,211.98,211.9,9.19565874]
[1758756623985,3.37298124,211.97,211.9,9.19565874]
[1758756624193,3.37298124,211.96,211.93,4.2444]
[1758756624389,1.72565874,211.99,211.95,7.68]
[1758756624693,11.09511203,211.98,211.95,7.68]
[1758756624893,3.35511203,211.97,211.95,7.68]
[1758756627093,7.74,211.98,211.95,7.68]
[1758756627902,1.72565874,212.0,211.94,115.16]
[1758756628098,11.09053028,211.99,211.95,7.68]
[1758756628399,7.74,211.99,211.95,7.68]
[1758756628596,7.74,211.99,211.94,115.16]
[1758756628897,1.72565874,212.0,211.95,7.68]
[1758756629099,1.72565874,212.04,211.95,7.68]
[1758756629301,3.34645634,212.03,211.95,7.68]
[1758756629500,9.46565874,212.04,211.98,7.68]
[1758756629704,7.74,212.02,211.99,122.8]
[1758756630099,7.74,212.02,212.0,7.68]
[1758756630505,9.46565874,212.02,212.0,7.68]
[1758756632800,1.72565874,212.02,212.0,7.68]
[1758756634596,2.69168478,212.06,212.0,7.68]
[1758756634796,7.74,212.05,212.0,7.68]
[1758756635306,2.69168478,212.06,212.0,7.68]
[1758756635502,6.93378478,212.06,212.0,7.68]
[1758756636610,7.74,212.05,212.0,7.68]
[1758756637510,6.93378478,212.06,212.0,7.68]
[1758756637708,14.67378478,212.06,212.0,7.68]
[1758756637905,10.43168478,212.06,212.0,7.68]
[1758756643607,10.43168478,212.06,212.0,11.9231]
[1758756643814,7.74,212.06,212.0,7.68]
[1758756645315,7.74,212.06,212.0,11.9231]
[1758756649109,7.74,212.06,212.01,4.2428]
[1758756649510,7.74,212.06,212.03,7.68]
[1758756650510,7.74,212.16,212.04,7.68]
[1758756650705,7.74,212.14,212.05,115.02]
[1758756650911,7.74,212.14,212.06,7.68]
[1758756651211,133.53469168,212.17,212.06,10.37168478]
[1758756651413,3.32896122,212.16,212.07,7.68]
[1758756651613,133.53469168,212.17,212.07,7.68]
[1758756653218,137.77459168,212.17,212.08,4.2415]
[1758756653417,137.77459168,212.17,212.07,7.68]
[1758756654220,137.77459168,212.17,212.09,4.2413]
[1758756656223,4.2401,212.16,212.07,11.9217]
[1758756656426,7.89,212.16,212.07,11.9217]
[1758756656626,125.79469168,212.17,212.07,11.9217]
[1758756656820,3.32730679,212.16,212.07,11.9217]
[1758756657020,3.32725375,212.15,212.07,115.0]
[1758756657223,2.69168478,212.16,212.07,115.0]
[1758756657417,3.32851567,212.15,212.07,115.0]
[1758756657626,7.89,212.13,212.07,115.0]
[1758756658123,7.89,212.13,212.07,119.2417]
[1758756660427,7.89,212.13,212.07,4.2417]
[1758756660623,2.69168478,212.16,212.06,99.9]
[1758756660624,3.33388787,212.12,212.06,99.9]
[1758756660824,7.53,212.1,212.07,7.92]
[1758756662727,7.53,212.16,212.07,7.92]
[1758756662928,3.33627078,212.15,212.07,7.92]
[1758756663123,7.53,212.13,212.07,7.92]
[1758756663325,7.53,212.11,212.04,7.92]
[1758756663526,7.53,212.09,212.0,7.92]
[1758756663721,7.53,212.06,212.0,7.92]
[1758756663926,7.53,212.07,212.01,114.96]
[1758756664126,4.2423,212.05,212.0,7.92]
[1758756664326,7.53,212.03,211.96,26.45200245]
[1758756664527,7.53,212.03,211.97,110.74]
[1758756665330,7.53,212.01,211.93,12.1644]
[1758756665532,3.3424868,212.0,211.93,7.92]
[1758756665727,7.53,211.99,211.93,28.9]
[1758756666431,7.53,211.99,211.93,36.82]
[1758756667030,65.9697,212.12,211.96,7.92]
[1758756667031,7.53,212.06,211.96,7.92]
[1758756667228,3.34310157,212.05,211.96,7.92]
[1758756667424,3.34310157,212.04,211.96,7.92]
[1758756667734,3.34310157,212.03,211.96,7.92]
[1758756667941,3.34310157,212.02,211.96,7.92]
[1758756668129,7.53,212.06,211.96,7.92]
[1758756668432,3.3455143,212.05,211.97,4.2436]
[1758756668632,3.3455143,212.04,211.96,7.92]
[1758756668930,3.3455143,212.03,211.96,7.92]
[1758756669230,73.5113,212.08,211.96,12.1639]
[1758756669429,7.53,212.02,211.94,31.38]
[1758756669629,3.34634592,212.01,211.94,31.38]
[1758756669935,3.34634592,212.01,211.94,43.5442]
[1758756675028,3.34634592,212.01,211.94,39.3]
[1758756675235,4.2432,212.0,211.94,39.3]
[1758756676135,4.2435,211.99,211.88,2.69168478]
[1758756676430,4.2435,211.99,211.87,343.2]
[1758756676431,7.53,211.99,211.89,122.9]
[1758756676632,7.53,211.97,211.89,7.92]
[1758756677431,2.69168478,212.04,211.89,7.92]
[1758756677636,10.87867987,212.03,211.89,7.92]
[1758756677934,3.34867987,212.02,211.89,7.92]
[1758756678237,4.243,212.01,211.91,4.2448]
[1758756678439,3.34867987,212.0,211.92,7.92]
[1758756678643,3.34867987,211.99,211.92,7.92]
[1758756678834,4.243,212.01,211.92,7.92]
[1758756679139,3.34802466,212.0,211.92,7.92]
[1758756679335,3.34802466,211.99,211.92,7.92]
[1758756679547,4.243,212.01,211.92,7.92]
[1758756679838,3.34741363,212.0,211.92,7.92]
[1758756680039,3.34741363,211.99,211.92,7.92]
[1758756680341,7.53,212.0,211.92,7.92]
[1758756680534,7.53,211.98,211.89,119.2453]
[1758756680931,4.2443,211.95,211.88,7.92]
[1758756681136,11.7743,211.95,211.89,115.0]
[1758756681832,4.2439,211.97,211.89,115.0]
[1758756682038,4.2439,211.97,211.9,7.92]
[1758756682439,4.2441,211.96,211.9,7.92]
[1758756685446,11.34788169,211.95,211.87,115.0]
[1758756685638,3.33788169,211.94,211.87,115.0]
[1758756686242,12.255,211.92,211.87,122.32]
[1758756687242,12.255,211.92,211.88,7.32]
[1758756687441,8.01,211.92,211.87,115.0]
[1758756687646,4.2445,211.94,211.87,122.32]
[1758756688345,4.2447,211.93,211.87,122.32]
[1758756688549,10.70168478,211.95,211.87,122.32]
[1758756688742,8.01,211.94,211.87,122.32]
[1758756689046,8.01,211.91,211.83,7.32]
[1758756689443,4.2461,211.86,211.83,7.32]
[1758756689643,12.2561,211.86,211.83,7.32]
[1758756689849,10.70168478,211.86,211.78,7.32]
[1758756690249,8.01,211.85,211.77,458.4]
[1758756690449,8.01,211.85,211.74,7.32]
[1758756690651,8.01,211.85,211.75,115.02]
[1758756691343,4.2465,211.84,211.75,115.02]
[1758756691550,4.2465,211.84,211.76,7.32]
[1758756693652,4.2468,211.83,211.76,7.32]
[1758756694047,8.01,211.82,211.76,7.32]
[1758756694638,12.2562,211.85,211.76,7.32]
[1758756695049,4.2466,211.84,211.76,7.32]
[1758756695845,8.01,211.85,211.76,7.32]
[1758756696754,1.72599122,211.84,211.76,7.32]
[1758756697353,1.72599122,211.84,211.77,4.2477]
[1758756698556,1.72599122,211.84,211.78,7.32]
[1758756702057,1.72599122,211.84,211.78,11.5674]
[1758756705066,1.72599122,211.85,211.79,4.2473]
[1758756705264,8.01,211.89,211.8,7.32]
[1758756705464,1.72599122,211.88,211.8,7.32]
[1758756705665,1.72599122,211.86,211.8,7.32]
[1758756709668,5.97209122,211.86,211.8,7.32]
[1758756713670,1.72599122,211.92,211.83,7.32]
[1758756713870,1.72599122,211.92,211.85,12.1361]
[1758756714077,9.73599122,211.94,211.86,7.89]
[1758756714381,3.36562462,211.93,211.88,1.72599122]
[1758756714681,9.30599122,211.97,211.88,1.72599122]
[1758756714682,9.30599122,211.97,211.89,7.89]
[1758756714882,7.58,211.94,211.89,7.89]
[1758756715080,3.36696238,211.93,211.89,7.89]
[1758756715275,7.58,211.92,211.89,7.89]
[1758756715474,5.97029122,211.95,211.87,7.89]
[1758756715678,3.36785795,211.94,211.87,7.89]
[1758756715876,3.36785795,211.93,211.87,7.89]
[1758756716078,7.58,211.96,211.89,7.89]
[1758756716277,3.36785459,211.95,211.89,7.89]
[1758756716574,3.36785459,211.94,211.89,7.89]
[1758756716784,7.58,211.92,211.89,7.89]
[1758756717382,13.55049122,211.94,211.85,7.89]
[1758756717583,3.36973699,211.93,211.85,7.89]
[1758756717782,13.55049122,211.94,211.85,7.89]
[1758756717983,3.36973555,211.93,211.85,7.89]
[1758756718187,13.55049122,211.94,211.87,4.2457]
[1758756718382,3.37082367,211.93,211.87,12.1357]
[1758756718589,13.55049122,211.94,211.87,12.1357]
[1758756718786,3.3708232,211.93,211.87,12.1357]
[1758756718987,13.55049122,211.94,211.87,12.1357]
[1758756719285,3.3708232,211.93,211.87,12.1357]
[1758756719485,13.55049122,211.94,211.87,12.1357]
[1758756719685,3.37189576,211.93,211.87,12.1357]
[1758756719888,13.55049122,211.94,211.87,12.1357]
[1758756720182,3.37189576,211.93,211.87,12.1357]
[1758756720386,13.55049122,211.94,211.87,12.1357]
[1758756720687,3.37283329,211.93,211.87,12.1357]
[1758756720886,13.55049122,211.94,211.87,12.1357]
[1758756721182,3.37283425,211.93,211.87,12.1357]
[1758756721386,13.55049122,211.94,211.87,12.1357]
[1758756721578,3.37390807,211.93,211.87,12.1357]
[1758756721779,3.37393977,211.92,211.87,4.2457]
[1758756721981,13.55049122,211.94,211.87,11.6557]
[1758756722185,3.37390711,211.93,211.87,11.6557]
[1758756722384,13.55049122,211.94,211.87,11.6557]
[1758756722586,3.37457823,211.93,211.87,11.6557]
[1758756722792,13.55049122,211.94,211.87,11.6557]
[1758756722985,3.37457823,211.93,211.87,11.6557]
[1758756723188,1.72599122,211.9,211.79,9.13599122]
[1758756723389,1.72599122,211.9,211.8,115.02]
[1758756723596,1.72599122,211.9,211.81,7.41]
[1758756724295,4.2455,211.89,211.82,4.2467]
[1758756724496,1.72599122,211.9,211.81,9.13599122]
[1758756724690,1.72599122,211.92,211.83,1.72599122]
[1758756724890,4.2447,211.93,211.85,1.72599122]
[1758756725093,7.55,211.94,211.86,7.41]
[1758756725296,1.72599122,211.96,211.88,7.41]
[1758756725496,3.37729094,211.95,211.88,7.41]
[1758756725796,3.37729094,211.94,211.88,7.41]
[1758756725995,7.55,211.95,211.88,7.41]
[1758756726195,3.37727408,211.94,211.88,7.41]
[1758756726388,4.2445,211.94,211.88,11.6555]
[1758756726990,5.97049122,211.94,211.88,11.6555]
[1758756728190,4.2447,211.93,211.88,7.41]
[1758756728391,9.27599122,211.9,211.84,7.41]
[1758756728690,9.27599122,211.87,211.8,7.41]
[1758756729192,1.72599122,211.85,211.79,106.13]
[1758756729692,13.52189122,211.87,211.82,7.41]
[1758756729892,9.27599122,211.87,211.79,98.72]
[1758756730088,1.72599122,211.87,211.8,7.41]
[1758756731302,1.72599122,211.87,211.84,7.41]
[1758756734709,1.72599122,211.87,211.83,4.2465]
[1758756734905,5.97149122,211.89,211.84,7.41]
[1758756735106,3.38262297,211.88,211.83,4.2465]
[1758756735308,5.97149122,211.89,211.83,11.6565]
[1758756736004,10.93269869,211.88,211.83,4.2465]
[1758756736319,10.93269869,211.88,211.84,7.41]
[1758756736320,7.55,211.88,211.84,7.41]
[1758756736903,7.55,211.88,211.83,4.2465]
[1758756737103,7.55,211.88,211.84,7.41]
[1758756738806,11.7957,211.88,211.84,7.41]
[1758756740110,11.7957,211.88,211.8,7.41]
[1758756740321,11.7957,211.88,211.82,4.2467]
[1758756740612,11.7957,211.88,211.82,11.6567]
[1758756741515,4.246,211.86,211.81,7.41]
[1758756741906,4.246,211.86,211.8,4.2472]
[1758756742106,4.246,211.86,211.81,7.41]
[1758756742306,4.246,211.86,211.8,4.2472]